fUSD/lending_fUSD_20240501
["ID","MTS","AMOUNT","RATE_DAILY","PERIOD"]
[325129026,1714531846360,-512.71360388,0.00011995,2]
[325129027,1714531846369,-548.12,0.00011995,2]
[325129028,1714531846379,-505.57197907,0.00011995,2]
[325129029,1714531846389,-590.96,0.00011995,2]
[325129030,1714531846398,-500.0,0.00011995,2]
[325129031,1714531846407,-499.20541765,0.00011995,2]
[325129032,1714531846417,-500.0,0.00011995,2]
[325129033,1714531846426,-598.27,0.00011995,2]
[325129034,1714531846436,-500.0,0.00011995,2]
[325129035,1714531846445,-503.77056032,0.00011995,2]
[325129036,1714531846454,-500.0,0.00011995,2]
[325129037,1714531846463,-500.0,0.00011995,2]
[325129038,1714531846473,-500.0,0.00011995,2]
[325129039,1714531846482,-500.0,0.00011995,2]
[325129040,1714531846491,-500.0,0.00011995,2]
[325129041,1714531846504,-497.29695518,0.00011995,2]
[325129042,1714531846514,-503.40962596,0.00011995,2]
[325129043,1714531846522,-500.0,0.00011995,2]
[325129044,1714531846531,-500.0,0.00011995,2]
[325129045,1714531846541,-500.0,0.00011995,2]
[325129047,1714531846549,-3420.46,0.00011995,2]
[325129049,1714531846558,-502.40792102,0.00011995,2]
[325129051,1714531846567,-502.68760297,0.00011995,2]
[325129053,1714531846576,-834.94,0.00011995,2]
[325129055,1714531846586,-500.0,0.00011995,2]
[325129057,1714531846595,-503.61112037,0.00011995,2]
[325129059,1714531846604,-500.0,0.00011995,2]
[325129061,1714531846614,-500.0,0.00011995,2]
[325129063,1714531846624,-1450.18,0.00011995,2]
[325129065,1714531846633,-504.13351201,0.00011995,2]
[325129066,1714531846643,-502.8345745,0.00011995,2]
[325129067,1714531846652,-500.0,0.00011995,2]
[325129068,1714531846661,-500.0,0.00011995,2]
[325129069,1714531846670,-500.0,0.00011995,2]
[325129070,1714531846679,-500.0,0.00011995,2]
[325129071,1714531846688,-500.0,0.00011995,2]
[325129072,1714531846698,-500.0,0.00011995,2]
[325129073,1714531846707,-500.0,0.00011995,2]
[325129074,1714531846717,-500.0,0.00011995,2]
[325129075,1714531846726,-500.0,0.00011995,2]
[325129076,1714531846735,-1050.4,0.00011995,2]
[325129078,1714531846744,-518.73719452,0.00011995,2]
[325129080,1714531846756,-504.92833788,0.00011995,2]
[325129082,1714531846765,-500.0,0.00011995,2]
[325129084,1714531846773,-500.0,0.00011995,2]
[325129086,1714531846782,-500.0,0.00011995,2]
[325129088,1714531846791,-501.37840699,0.00011995,2]
[325129089,1714531846800,-1658.44,0.00011995,2]
[325129090,1714531846809,-500.0,0.00011995,2]
[325129091,1714531846819,-502.91912487,0.00011995,2]
[325129092,1714531846828,-500.0,0.00011995,2]
[325129093,1714531846837,-501.34154898,0.00011995,2]
[325129094,1714531846847,-503.54630456,0.00011995,2]
[325129095,1714531846856,-886.47,0.00011995,2]
[325129096,1714531846865,-500.0,0.00011995,2]
[325129097,1714531846875,-508.02959424,0.00011995,2]
[325129098,1714531846884,-500.0,0.00011995,2]
[325129099,1714531846893,-503.96867406,0.00011995,2]
[325129100,1714531846902,-522.8144082,0.00011995,2]
[325129101,1714531846911,-500.0,0.00011995,2]
[325129102,1714531846921,-500.0,0.00011995,2]
[325129103,1714531846930,-500.0,0.00011995,2]
[325129104,1714531846939,-1676.7,0.00011995,2]
[325129105,1714531846949,-504.95209871,0.00011995,2]
[325129106,1714531846959,-500.0,0.00011995,2]
[325129107,1714531846968,-500.0,0.00011995,2]
[325129108,1714531846978,-500.0,0.00011995,2]
[325129109,1714531846987,-676.56,0.00011995,2]
[325129110,1714531846998,-500.0,0.00011995,2]
[325129111,1714531847007,-500.0,0.00011995,2]
[325129112,1714531847017,-500.0,0.00011995,2]
[325129113,1714531847030,-500.0,0.00011995,2]
[325129114,1714531847040,-500.0,0.00011995,2]
[325129115,1714531847049,-872.05,0.00011995,2]
[325129116,1714531847059,-500.0,0.00011995,2]
[325129117,1714531847069,-502.20765811,0.00011995,2]
[325129118,1714531847078,-500.0,0.00011995,2]
[325129119,1714531847087,-500.0,0.00011995,2]
[325129120,1714531847099,-500.0,0.00011995,2]
[325129121,1714531847108,-2352.56,0.00011995,2]
[325129122,1714531847118,-500.0,0.00011995,2]
[325129123,1714531847128,-500.0,0.00011995,2]
[325129124,1714531847137,-503.4309147,0.00011995,2]
[325129125,1714531847147,-500.0,0.00011995,2]
[325129126,1714531847157,-968.6,0.00011995,2]
[325129127,1714531847167,-500.0,0.00011995,2]
[325129128,1714531847176,-500.0,0.00011995,2]
[325129129,1714531847185,-500.0,0.00011995,2]
[325129130,1714531847195,-500.0,0.00011995,2]
[325129131,1714531847204,-500.0,0.00011995,2]
[325129132,1714531847213,-1034.08,0.00011995,2]
[325129133,1714531847222,-500.0,0.00011995,2]
[325129134,1714531847231,-694.22,0.00011995,2]
[325129135,1714531847241,-500.0,0.00011995,2]
[325129136,1714531847252,-500.0,0.00011995,2]
[325129137,1714531847261,-500.0,0.00011995,2]
[325129138,1714531847271,-500.0,0.00011995,2]
[325129139,1714531847280,-500.0,0.00011995,2]
[325129140,1714531847289,-5475.36,0.00011995,2]
[325129141,1714531847299,-569.37,0.00011995,2]
[325129142,1714531847308,-500.0,0.00011995,2]
[325129143,1714531847317,-500.0,0.00011995,2]
[325129144,1714531847326,-500.0,0.00011995,2]
[325129145,1714531847336,-500.0,0.00011995,2]
[325129146,1714531847345,-1128.56,0.00011995,2]
[325129147,1714531847354,-798.15,0.00011995,2]
[325129148,1714531847363,-500.0,0.00011995,2]
[325129149,1714531847373,-500.0,0.00011995,2]
[325129150,1714531847382,-500.0,0.00011995,2]
[325129151,1714531847391,-500.0,0.00011995,2]
[325129152,1714531847401,-500.0,0.00011995,2]
[325129153,1714531847410,-500.41150669,0.00011995,2]
[325129154,1714531847419,-500.0,0.00011995,2]
[325129155,1714531847428,-500.0,0.00011995,2]
[325129156,1714531847438,-500.0,0.00011995,2]
[325129157,1714531847447,-500.0,0.00011995,2]
[325129158,1714531847456,-500.0,0.00011995,2]
[325129159,1714531847466,-500.0,0.00011995,2]
[325129160,1714531847475,-500.0,0.00011995,2]
[325129161,1714531847484,-500.0,0.00011995,2]
[325129162,1714531847493,-500.94736422,0.00011995,2]
[325129163,1714531847503,-500.0,0.00011995,2]
[325129164,1714531847513,-1917.28,0.00011995,2]
[325129165,1714531847522,-504.73421431,0.00011995,2]
[325129166,1714531847531,-500.0,0.00011995,2]
[325129167,1714531847541,-500.0,0.00011995,2]
[325129168,1714531847550,-500.0,0.00011995,2]
[325129169,1714531847559,-500.0,0.00011995,2]
[325129170,1714531847568,-500.0,0.00011995,2]
[325129171,1714531847578,-500.0,0.00011995,2]
[325129172,1714531847587,-500.0,0.00011995,2]
[325129173,1714531847596,-500.0,0.00011995,2]
[325129174,1714531847605,-500.0,0.00011995,2]
[325129175,1714531847614,-525.31,0.00011995,2]
[325129176,1714531847624,-500.0,0.00011995,2]
[325129177,1714531847633,-500.0,0.00011995,2]
[325129178,1714531847643,-523.76981028,0.00011995,2]
[325129179,1714531847652,-500.0,0.00011995,2]
[325129180,1714531847662,-500.0,0.00011995,2]
[325129181,1714531847671,-500.0,0.00011995,2]
[325129182,1714531847680,-500.0,0.00011995,2]
[325129183,1714531847690,-500.0,0.00011995,2]
[325129184,1714531847699,-500.0,0.00011995,2]
[325129185,1714531847709,-503.05583064,0.00011995,2]
[325129186,1714531847718,-500.0,0.00011995,2]
[325129187,1714531847728,-500.0,0.00011995,2]
[325129188,1714531847737,-503.82425462,0.00011995,2]
[325129189,1714531847747,-500.0,0.00011995,2]
[325129190,1714531847757,-377.3613339,0.00011995,2]
[325129191,1714531847766,-500.0,0.00011995,2]
[325129192,1714531847776,-500.0,0.00011995,2]
[325129193,1714531847786,-500.0,0.00011995,2]
[325129194,1714531847796,-518.50056271,0.00011995,2]
[325129195,1714531847805,-500.0,0.00011995,2]
[325129196,1714531847815,-500.0,0.00011995,2]
[325129197,1714531847824,-501.30381601,0.00011995,2]
[325129198,1714531847833,-500.0,0.00011995,2]
[325129199,1714531847842,-500.0,0.00011995,2]
[325129200,1714531847852,-500.0,0.00011995,2]
[325129201,1714531847862,-500.0,0.00011995,2]
[325129202,1714531847872,-500.0,0.00011995,2]
[325129203,1714531847881,-500.0,0.00011995,2]
[325129204,1714531847891,-500.0,0.00011995,2]
[325129205,1714531847900,-500.0,0.00011995,2]
[325129206,1714531847910,-500.0,0.00011995,2]
[325129207,1714531847920,-502.52343255,0.00011995,2]
[325129208,1714531847929,-500.0,0.00011995,2]
[325129209,1714531847939,-500.0,0.00011995,2]
[325129210,1714531847948,-500.0,0.00011995,2]
[325129211,1714531847958,-500.0,0.00011995,2]
[325129212,1714531847967,-501.15419621,0.00011995,2]
[325129213,1714531847976,-500.57909078,0.00011995,2]
[325129214,1714531847986,-500.0,0.00011995,2]
[325129215,1714531847997,-503.77581591,0.00011995,2]
[325129216,1714531848007,-500.0,0.00011995,2]
[325129217,1714531848021,-501.44439302,0.00011995,2]
[325129218,1714531848033,-500.0,0.00011995,2]
[325129219,1714531848042,-500.0,0.00011995,2]
[325129220,1714531848052,-500.0,0.00011995,2]
[325129221,1714531848063,-500.0,0.00011995,2]
[325129222,1714531848072,-500.0,0.00011995,2]
[325129223,1714531848082,-500.0,0.00011995,2]
[325129224,1714531848091,-500.0,0.00011995,2]
[325129225,1714531848102,-501.25566929,0.00011995,2]
[325129226,1714531848111,-500.0,0.00011995,2]
[325129227,1714531848121,-500.0,0.00011995,2]
[325129228,1714531848131,-155.40561728,0.00011995,2]
[325129229,1714531848140,-500.0,0.00011995,2]
[325129230,1714531848150,-500.0,0.00011995,2]
[325129231,1714531848159,-504.43992952,0.00011995,2]
[325129232,1714531848169,-1134.42,0.00011995,2]
[325129233,1714531848178,-500.0,0.00011995,2]
[325129234,1714531848188,-500.0,0.00011995,2]
[325129235,1714531848197,-151.0,0.00011995,2]
[325129236,1714531848207,-500.0,0.00011995,2]
[325129237,1714531848216,-500.0,0.00011995,2]
[325129238,1714531848225,-500.68438627,0.00011995,2]
[325129239,1714531848235,-741.37,0.00011995,2]
[325129240,1714531848243,-500.0,0.00011995,2]
[325129241,1714531848254,-500.71401319,0.00011995,2]
[325129242,1714531848263,-151.0,0.00011995,2]
[325129243,1714531848272,-505.19030687,0.00011995,2]
[325129244,1714531848282,-500.0,0.00011995,2]
[325129245,1714531848291,-500.0,0.00011995,2]
[325129246,1714531848300,-500.0,0.00011995,2]
[325129247,1714531848310,-500.0,0.00011995,2]
[325129248,1714531848319,-912.31,0.00011995,2]
[325129249,1714531848330,-500.8663086,0.00011995,2]
[325129250,1714531848340,-503.35345678,0.00011995,2]
[325129251,1714531848350,-500.0,0.00011995,2]
[325129252,1714531848359,-502.78647897,0.00011995,2]
[325129253,1714531848369,-500.0,0.00011995,2]
[325129254,1714531848379,-504.33679893,0.00011995,2]
[325129255,1714531848389,-500.0,0.00011995,2]
[325129256,1714531848399,-500.0,0.00011995,2]
[325129257,1714531848410,-500.0,0.00011995,2]
[325129258,1714531848419,-500.0,0.00011995,2]
[325129259,1714531848429,-500.0,0.00011995,2]
[325129260,1714531848439,-500.0,0.00011995,2]
[325129261,1714531848448,-500.0,0.00011995,2]
[325129262,1714531848458,-501.27420901,0.00011995,2]
[325129263,1714531848467,-500.0,0.00011995,2]
[325129264,1714531848477,-151.0,0.00011995,2]
[325129265,1714531848486,-500.0,0.00011995,2]
[325129266,1714531848497,-500.0,0.00011995,2]
[325129267,1714531848506,-500.0,0.00011995,2]
[325129268,1714531848516,-588.72748604,0.00011995,2]
[325129269,1714531848526,-500.0,0.00011995,2]
[325129270,1714531848535,-505.09411067,0.00011995,2]
[325129271,1714531848544,-500.0,0.00011995,2]
[325129272,1714531848554,-534.26,0.00011995,2]
[325129273,1714531848563,-501.42262857,0.00011995,2]
[325129274,1714531848573,-500.0,0.00011995,2]
[325129275,1714531848582,-501.37341406,0.00011995,2]
[325129276,1714531848591,-534.8111348,0.00011995,2]
[325129277,1714531848600,-500.0,0.00011995,2]
[325129278,1714531848610,-500.0,0.00011995,2]
[325129279,1714531848619,-499.44967792,0.00011996,2]
[325129280,1714531848629,-500.42568512,0.00011996,2]
[325129281,1714531848638,-545.7133177,0.00011996,2]
[325129282,1714531848647,-502.41903163,0.00011996,2]
[325129283,1714531848656,-500.88804687,0.00011996,2]
[325129284,1714531848666,-501.40075884,0.00011996,2]
[325129285,1714531848675,-500.46052232,0.00011996,2]
[325129286,1714531848684,-505.60167785,0.00011996,2]
[325129287,1714531848693,-548.0470288,0.00011996,2]
[325129288,1714531848703,-727.32858542,0.00011996,2]
[325129289,1714531848712,-500.0,0.00011996,2]
[325129290,1714531848722,-501.04335551,0.00011996,2]
[325129291,1714531848731,-500.46340309,0.00011996,2]
[325129292,1714531848740,-501.90718941,0.00011996,2]
[325129293,1714531848751,-500.70910517,0.00011996,2]
[325129294,1714531848761,-501.82249643,0.00011996,2]
[325129295,1714531848771,-501.09366269,0.00011996,2]
[325129296,1714531848780,-500.64965693,0.00011996,2]
[325129297,1714531848790,-501.00574939,0.00011996,2]
[325129298,1714531848799,-500.0,0.00011996,2]
[325129299,1714531848808,-500.99342918,0.00011996,2]
[325129300,1714531848818,-869.87271268,0.00011996,2]
[325129301,1714531848826,-501.6603662,0.00011996,2]
[325129302,1714531848836,-500.0,0.00011996,2]
[325129303,1714531848845,-8950.22753102,0.00011996,2]
[325129304,1714531849255,-16730.45181081,0.00011996,2]
[325129305,1714531849285,-500.0,0.00011994,2]
[325129306,1714531849294,-10620.2528,0.00011996,2]
[325129307,1714531865192,67033.27224132,9.4e-05,2]
[325129308,1714531928433,154.48,9.357e-05,2]
[325129311,1714532484439,154.48,8.744e-05,2]
[325129327,1714532944342,154.48,8.73e-05,2]
[325129409,1714533032693,-1275.12716162,0.00010264,2]
[325129410,1714533032704,-942.15646242,0.00010264,2]
[325129411,1714533032714,-787.80501962,0.00010265,2]
[325129412,1714533032723,-210.77904721,0.00010265,2]
[325129413,1714533032732,-204.1317369,0.00010266,2]
[325129414,1714533032742,-158.74333394,0.00010574,2]
[325129415,1714533032751,-250.0,0.0001064,2]
[325129416,1714533032760,-624.89,0.00010686,2]
[325129417,1714533032769,-166.19,0.00010686,2]
[325129418,1714533032778,-855.36,0.00010686,2]
[325129419,1714533032787,-8628.31,0.00010686,2]
[325129420,1714533032796,-598.29,0.00010716,2]
[325129421,1714533032806,-170.09,0.00010763,2]
[325129422,1714533032815,-877.77,0.00010776,2]
[325129423,1714533032824,-217.31,0.00010797,2]
[325129424,1714533032833,-150.99,0.00010797,2]
[325129425,1714533032841,-370.19095959,0.00010916,2]
[325129426,1714533032853,-129.79904041,0.00010916,2]
[325129427,1714533032863,-200.0,0.00010959,2]
[325129428,1714533032872,-1252.76058243,0.00011,2]
[325129429,1714533032881,-419.48,0.0001137,2]
[325129430,1714533032890,-419.48,0.0001137,2]
[325129431,1714533032899,-419.48,0.0001137,2]
[325129432,1714533032908,-419.48,0.0001137,2]
[325129433,1714533032917,-657.76,0.0001137,2]
[325129434,1714533032926,-154.48,0.00011418,2]
[325129435,1714533032935,-366.75472377,0.00011567,2]
[325129436,1714533032944,-419.48,0.000116,2]
[325129437,1714533032953,-678.17,0.000116,2]
[325129438,1714533032962,-150.0,0.000116,2]
[325129439,1714533032971,-328.93,0.000116,2]
[325129440,1714533032980,-327.98,0.000116,2]
[325129441,1714533032989,-150.0,0.000116,2]
[325129442,1714533032999,-200.0,0.000116,4]
[325129443,1714533033008,-207.41718321,0.0001165,2]
[325129444,1714533033017,-168.22068823,0.00011681,2]
[325129445,1714533033026,-4286.90862745,0.00011685,2]
[325129446,1714533033038,-1263.8071083,0.00011685,2]
[325129447,1714533033047,-150.0,0.000117,2]
[325129448,1714533033056,-162.97,0.000117,2]
[325129449,1714533033066,-500.0,0.000117,4]
[325129450,1714533033075,-366.75472377,0.00011723,2]
[325129451,1714533033083,-163.52345962,0.00011754,2]
[325129452,1714533033092,-150.0,0.000118,2]
[325129453,1714533033101,-1044.58,0.000118,2]
[325129454,1714533033111,-300.55,0.000118,2]
[325129455,1714533033120,-301.54,0.000118,2]
[325129456,1714533033129,-357.02,0.000118,2]
[325129457,1714533033138,-150.58,0.000118,2]
[325129458,1714533033147,-151.0,0.000118,2]
[325129459,1714533033156,-800.0,0.000118,4]
[325129460,1714533033166,-537.67470831,0.00011831,2]
[325129461,1714533033177,-1654.70589169,0.00011831,2]
[325129462,1714533033186,-3930.96767748,0.00011874,2]
[325129463,1714533033195,-291.73912931,0.0001188,2]
[325129464,1714533033207,-186.1290252,0.0001188,2]
[325129465,1714533033216,-174.67138716,0.0001188,2]
[325129466,1714533033225,-476.894519,0.0001189,2]
[325129467,1714533033234,-55.08531271,0.00011893,2]
[325129468,1714533033246,-99.12138458,0.00011893,2]
[325129469,1714533033255,-160.11598717,0.00011895,2]
[325129470,1714533033264,-1740.76262825,0.00011895,2]
[325129471,1714533033276,-8259.23737175,0.00011895,2]
[325129472,1714533033285,-2168.48800163,0.000119,2]
[325129473,1714533033297,-6346.45924386,0.000119,2]
[325129474,1714533033309,-351.56071379,0.000119,2]
[325129475,1714533033320,-469.17,0.000119,2]
[325129476,1714533033332,-294.84723168,0.000119,2]
[325129477,1714533033347,-3916.49456114,0.000119,2]
[325129478,1714533033361,-3994.47293492,0.000119,2]
[325129479,1714533033372,-7978.076391,0.000119,2]
[325129480,1714533033387,-66.04247884,0.000119,2]
[325129481,1714533033397,-1100.0,0.000119,4]
[325129482,1714533033406,-5124.55752116,0.000119,2]
[325129483,1714533033418,-1501.8336298,0.000119,2]
[325129484,1714533033430,-1403.8,0.000119,2]
[325129485,1714533033442,-1623.1694,0.000119,2]
[325129486,1714533033502,-4638.17294875,0.000119,2]
[325129487,1714533033512,-2228.07147501,0.000119,2]
[325129488,1714533033521,-164.22,0.00011919,2]
[325129489,1714533033530,-155.78528379,0.0001192,2]
[325129490,1714533033539,-500.0,0.00011928,2]
[325129491,1714533033548,-500.0,0.00011928,2]
[325129492,1714533033557,-500.0,0.00011928,2]
[325129493,1714533033566,-500.0,0.00011928,2]
[325129494,1714533033576,-500.0,0.00011928,2]
[325129495,1714533033585,-500.0,0.00011928,2]
[325129496,1714533033594,-500.0,0.00011928,2]
[325129497,1714533033603,-500.0,0.00011928,2]
[325129498,1714533033612,-500.0,0.00011928,2]
[325129499,1714533033621,-500.0,0.00011928,2]
[325129500,1714533033630,-299.36314198,0.00011929,2]
[325129501,1714533033640,-500.73176622,0.00011929,2]
[325129502,1714533033649,-4379.0925583,0.00011929,2]
[325129529,1714533038875,-500.0,0.00011928,2]
[325129530,1714533038885,-500.0,0.00011928,2]
[325129531,1714533038894,-108.16639877,0.00011929,2]
[325129532,1714533038906,-638613.17758047,0.00011929,2]
[325129533,1714533038918,-43540.07413059,0.00011929,2]
[325129534,1714533038927,-4423.24827159,0.0001193,2]
[325129535,1714533038938,-500.0,0.0001193,2]
[325129536,1714533038947,-500.0,0.0001193,2]
[325129537,1714533038956,-500.0,0.0001193,2]
[325129538,1714533038966,-500.0,0.0001193,2]
[325129539,1714533038975,-500.0,0.0001193,2]
[325129540,1714533038985,-6296.8,0.0001193,2]
[325129541,1714533038994,-1299.62,0.0001193,2]
[325129542,1714533039004,-928.66,0.0001193,2]
[325129543,1714533039015,-500.0,0.0001193,2]
[325129544,1714533039024,-2874.08,0.0001193,2]
[325129545,1714533039033,-629.82,0.0001193,2]
[325129546,1714533039044,-500.0,0.0001193,2]
[325129547,1714533039053,-500.0,0.0001193,2]
[325129548,1714533039063,-500.0,0.0001193,2]
[325129549,1714533039074,-500.0,0.0001193,2]
[325129550,1714533039083,-500.0,0.0001193,2]
[325129551,1714533039094,-574.51,0.0001193,2]
[325129552,1714533039104,-1148.05,0.0001193,2]
[325129553,1714533039114,-500.0,0.0001193,2]
[325129554,1714533039123,-699.03,0.0001193,2]
[325129555,1714533039132,-500.0,0.0001193,2]
[325129556,1714533039141,-1314.72,0.0001193,2]
[325129557,1714533039150,-500.0,0.0001193,2]
[325129558,1714533039159,-500.0,0.0001193,2]
[325129559,1714533039168,-500.0,0.0001193,2]
[325129560,1714533039178,-770.42,0.0001193,2]
[325129561,1714533039187,-533.3,0.0001193,2]
[325129562,1714533039197,-500.0,0.0001193,2]
[325129563,1714533039206,-500.0,0.0001193,2]
[325129564,1714533039216,-500.0,0.0001193,2]
[325129565,1714533039225,-500.0,0.0001193,2]
[325129566,1714533039234,-500.0,0.0001193,2]
[325129567,1714533039243,-755.28,0.0001193,2]
[325129568,1714533039253,-500.0,0.0001193,2]
[325129569,1714533039262,-500.0,0.0001193,2]
[325129570,1714533039271,-500.0,0.0001193,2]
[325129571,1714533039280,-500.0,0.0001193,2]
[325129572,1714533039289,-500.0,0.0001193,2]
[325129573,1714533039298,-645.46,0.0001193,2]
[325129574,1714533039308,-518.81,0.0001193,2]
[325129575,1714533039317,-999.37,0.0001193,2]
[325129576,1714533039326,-500.0,0.0001193,2]
[325129577,1714533039335,-611.92135617,0.0001193,2]
[325129578,1714533039345,-500.0,0.0001193,2]
[325129579,1714533039354,-766.54,0.0001193,2]
[325129580,1714533039363,-1260.18,0.0001193,2]
[325129581,1714533039373,-500.0,0.0001193,2]
[325129582,1714533039383,-1676.66,0.0001193,2]
[325129583,1714533039394,-500.0,0.0001193,2]
[325129584,1714533039403,-711.99,0.0001193,2]
[325129585,1714533039412,-1761.55,0.0001193,2]
[325129586,1714533039422,-827.66,0.0001193,2]
[325129587,1714533039432,-946.22,0.0001193,2]
[325129588,1714533039441,-500.0,0.0001193,2]
[325129589,1714533039451,-1089.07,0.0001193,2]
[325129590,1714533039460,-1230.41,0.0001193,2]
[325129591,1714533039471,-1140.15,0.0001193,2]
[325129592,1714533039480,-500.0,0.0001193,2]
[325129593,1714533039489,-2304.23,0.0001193,2]
[325129594,1714533039499,-500.0,0.0001193,2]
[325129595,1714533039508,-2596.96,0.0001193,2]
[325129596,1714533039517,-8258.57,0.0001193,2]
[325129597,1714533039526,-897.04,0.0001193,2]
[325129599,1714533039536,-500.0,0.0001193,2]
[325129600,1714533039545,-801.13,0.0001193,2]
[325129602,1714533039554,-500.0,0.0001193,2]
[325129605,1714533039563,-500.0,0.0001193,2]
[325129607,1714533039572,-500.0,0.0001193,2]
[325129609,1714533039581,-500.0,0.0001193,2]
[325129611,1714533039591,-1044.87,0.0001193,2]
[325129613,1714533039600,-500.0,0.0001193,2]
[325129616,1714533039609,-1909.06,0.0001193,2]
[325129618,1714533039618,-1825.08,0.0001193,2]
[325129621,1714533039627,-3540.57,0.0001193,2]
[325129624,1714533039636,-591.89,0.0001193,2]
[325129627,1714533039646,-1231.81,0.0001193,2]
[325129630,1714533039655,-500.0,0.0001193,2]
[325129633,1714533039664,-500.0,0.0001193,2]
[325129635,1714533039674,-500.0,0.0001193,2]
[325129637,1714533039683,-500.0,0.00011932,2]
[325129640,1714533039692,-500.0,0.00011932,2]
[325129642,1714533039701,-949.03,0.00011932,2]
[325129644,1714533039710,-559.26,0.00011932,2]
[325129646,1714533039719,-500.0,0.00011932,2]
[325129648,1714533039728,-596.64,0.00011932,2]
[325129650,1714533039737,-500.0,0.00011932,2]
[325129652,1714533039746,-500.0,0.00011932,2]
[325129654,1714533039755,-560.53,0.00011932,2]
[325129655,1714533039765,-1299.71,0.00011932,2]
[325129658,1714533039774,-8229.95,0.00011932,2]
[325129660,1714533039784,-500.0,0.00011932,2]
[325129662,1714533039793,-577.91,0.00011932,2]
[325129664,1714533039803,-1386.31,0.00011932,2]
[325129666,1714533039813,-500.0,0.00011932,2]
[325129668,1714533039822,-500.0,0.00011932,2]
[325129670,1714533039832,-990.12,0.00011932,2]
[325129672,1714533039842,-2582.0,0.00011986,2]
[325129674,1714533039852,-155.21536814,0.00011989,2]
[325129676,1714533039861,-194.76294358,0.0001199,2]
[325129677,1714533039870,-155.19473648,0.00011991,2]
[325129679,1714533039879,-216.20277459,0.00011991,2]
[325129681,1714533039888,-155.60492978,0.00011991,2]
[325129682,1714533039897,-500.0,0.00011991,2]
[325129683,1714533039906,-221.14821884,0.00011992,2]
[325129684,1714533039915,-500.0,0.00011992,2]
[325129685,1714533039924,-500.0,0.00011992,2]
[325129686,1714533039933,-631.39196364,0.00011992,2]
[325129687,1714533039942,-500.0,0.00011992,2]
[325129688,1714533039951,-500.0,0.00011992,2]
[325129689,1714533039961,-500.0,0.00011992,2]
[325129691,1714533039971,-229.14210528,0.00011992,2]
[325129693,1714533039980,-500.0,0.00011992,2]
[325129694,1714533039990,-500.0,0.00011992,2]
[325129697,1714533040000,-500.0,0.00011992,2]
[325129698,1714533040008,-500.0,0.00011992,2]
[325129700,1714533040018,-500.0,0.00011992,2]
[325129703,1714533040028,-500.0,0.00011992,2]
[325129704,1714533040037,-500.0,0.00011992,2]
[325129706,1714533040047,-500.0,0.00011992,2]
[325129708,1714533040056,-500.0,0.00011992,2]
[325129710,1714533040066,-518.57424522,0.00011992,2]
[325129712,1714533040075,-500.0,0.00011992,2]
[325129714,1714533040084,-500.0,0.00011992,2]
[325129715,1714533040094,-163.4,0.00011992,2]
[325129716,1714533040103,-500.0,0.00011992,2]
[325129717,1714533040113,-500.0,0.00011992,2]
[325129718,1714533040123,-500.0,0.00011992,2]
[325129719,1714533040133,-500.0,0.00011992,2]
[325129720,1714533040142,-500.0,0.00011992,2]
[325129721,1714533040152,-500.0,0.00011992,2]
[325129722,1714533040162,-311.7320063,0.00011992,2]